fUSD/lending_fUSD_20240516
["ID","MTS","AMOUNT","RATE_DAILY","PERIOD"]
[327222488,1715903459367,-678.48,0.00011174,2]
[327222489,1715903459377,-678.48,0.00011174,2]
[327222490,1715903459386,-500.0,0.00011174,2]
[327222491,1715903459396,-402.20919634,0.00011174,2]
[327222492,1715903459406,-178.13,0.00011174,2]
[327222493,1715903459416,-953.85,0.00011174,2]
[327222494,1715903459426,-953.85,0.00011174,2]
[327222495,1715903459436,-500.0,0.00011174,2]
[327222496,1715903459447,-966.67,0.00011174,2]
[327222497,1715903459457,-966.67,0.00011174,2]
[327222498,1715903459467,-151.0,0.00011174,2]
[327222499,1715903459476,-500.0,0.00011174,2]
[327222500,1715903459486,-978.05,0.00011174,2]
[327222501,1715903459496,-978.05,0.00011174,2]
[327222502,1715903459506,-500.0,0.00011174,2]
[327222503,1715903459516,-954.55,0.00011174,2]
[327222504,1715903459526,-954.55,0.00011174,2]
[327222505,1715903459536,-500.0,0.00011174,2]
[327222506,1715903459545,-151.0,0.00011174,2]
[327222507,1715903459556,-500.0,0.00011174,2]
[327222508,1715903459566,-606.08520158,0.00011174,2]
[327222509,1715903459576,-527.22,0.00011174,2]
[327222510,1715903459587,-500.0,0.00011174,2]
[327222511,1715903459598,-151.0,0.00011174,2]
[327222512,1715903459608,-527.22,0.00011174,2]
[327222513,1715903459618,-151.0,0.00011174,2]
[327222514,1715903459628,-500.0,0.00011174,2]
[327222515,1715903459638,-500.0,0.00011174,2]
[327222516,1715903459648,-500.0,0.00011174,2]
[327222517,1715903459658,-576.08,0.00011174,2]
[327222518,1715903459669,-576.08,0.00011174,2]
[327222519,1715903459679,-500.0,0.00011174,2]
[327222520,1715903459690,-151.0,0.00011174,2]
[327222521,1715903459911,-500.0,0.00011174,2]
[327222522,1715903459922,-500.0,0.00011174,2]
[327222523,1715903459932,-151.0,0.00011174,2]
[327222524,1715903459941,-151.0,0.00011174,2]
[327222525,1715903459953,-500.0,0.00011174,2]
[327222526,1715903459962,-759.49,0.00011174,2]
[327222527,1715903459971,-759.49,0.00011174,2]
[327222528,1715903459980,-1029.16,0.00011174,2]
[327222529,1715903459992,-1029.16,0.00011174,2]
[327222530,1715903460002,-500.0,0.00011174,2]
[327222531,1715903460012,-500.0,0.00011174,2]
[327222532,1715903460022,-530.28,0.00011174,2]
[327222533,1715903460031,-530.28,0.00011174,2]
[327222534,1715903460040,-151.412505,0.00011174,2]
[327222535,1715903460050,-614.57,0.00011174,2]
[327222536,1715903460059,-614.57,0.00011174,2]
[327222537,1715903460069,-151.0,0.00011174,2]
[327222538,1715903460078,-221.034619,0.00011174,2]
[327222539,1715903460088,-526.52,0.00011174,2]
[327222540,1715903460098,-526.52,0.00011174,2]
[327222541,1715903460108,-151.0,0.00011174,2]
[327222542,1715903460117,-221.034619,0.00011174,2]
[327222543,1715903460126,-500.0,0.00011174,2]
[327222544,1715903460136,-151.0,0.00011174,2]
[327222545,1715903460145,-1911.64,0.00011174,2]
[327222546,1715903460154,-500.0,0.00011174,2]
[327222547,1715903460164,-500.0,0.00011174,2]
[327222548,1715903460173,-692.36,0.00011174,2]
[327222549,1715903460183,-692.36,0.00011174,2]
[327222550,1715903460193,-500.0,0.00011174,2]
[327222551,1715903460202,-6134.87,0.00011174,2]
[327222552,1715903460212,-500.0,0.00011174,2]
[327222553,1715903460221,-500.0,0.00011174,2]
[327222554,1715903460231,-1291.89,0.00011174,2]
[327222555,1715903460240,-1291.89,0.00011174,2]
[327222556,1715903460249,-500.0,0.00011174,2]
[327222557,1715903460259,-306.464196,0.00011174,2]
[327222558,1715903460269,-306.464196,0.00011174,2]
[327222559,1715903460279,-500.0,0.00011174,2]
[327222560,1715903460288,-151.0,0.00011174,2]
[327222561,1715903460298,-1305.53,0.00011174,2]
[327222562,1715903460308,-1305.53,0.00011174,2]
[327222563,1715903460318,-174.912483,0.00011174,2]
[327222564,1715903460328,-500.0,0.00011174,2]
[327222565,1715903460338,-426.68,0.00011174,2]
[327222566,1715903460349,-500.0,0.00011174,2]
[327222567,1715903460359,-487.213894,0.00011174,2]
[327222568,1715903460368,-151.0,0.00011174,2]
[327222569,1715903460377,-487.213894,0.00011174,2]
[327222570,1715903460386,-151.0,0.00011174,2]
[327222571,1715903460396,-500.0,0.00011174,2]
[327222572,1715903460405,-151.0,0.00011174,2]
[327222573,1715903460416,-151.0,0.00011174,2]
[327222574,1715903460425,-2225.73,0.00011174,2]
[327222575,1715903460435,-151.0,0.00011174,2]
[327222576,1715903460445,-680.92,0.00011174,2]
[327222577,1715903460455,-680.92,0.00011174,2]
[327222578,1715903460464,-816.52,0.00011174,2]
[327222579,1715903460474,-500.0,0.00011174,2]
[327222580,1715903460483,-816.52,0.00011174,2]
[327222581,1715903460493,-439.66,0.00011174,2]
[327222582,1715903460502,-803.72,0.00011174,2]
[327222583,1715903460512,-500.0,0.00011174,2]
[327222584,1715903460522,-500.0,0.00011174,2]
[327222585,1715903460531,-371.5997,0.00011174,2]
[327222586,1715903460541,-907.18,0.00011174,2]
[327222587,1715903460550,-11711.69,0.00011174,2]
[327222588,1715903460560,-907.18,0.00011174,2]
[327222589,1715903460569,-371.5997,0.00011174,2]
[327222590,1715903460578,-500.0,0.00011174,2]
[327222591,1715903460587,-500.0,0.00011174,2]
[327222592,1715903460597,-500.0,0.00011174,2]
[327222593,1715903460606,-500.0,0.00011174,2]
[327222594,1715903460616,-500.0,0.00011174,2]
[327222595,1715903460626,-500.0,0.00011174,2]
[327222596,1715903460636,-500.0,0.00011174,2]
[327222597,1715903460645,-500.0,0.00011174,2]
[327222598,1715903460655,-1016.15,0.00011174,2]
[327222599,1715903460665,-1232.71,0.00011174,2]
[327222600,1715903460675,-1232.71,0.00011174,2]
[327222601,1715903460684,-153.52941,0.00011174,2]
[327222602,1715903460694,-500.0,0.00011174,2]
[327222603,1715903460703,-500.0,0.00011174,2]
[327222604,1715903460712,-500.0,0.00011174,2]
[327222605,1715903460721,-1547.65,0.00011174,2]
[327222606,1715903460731,-284.725304,0.00011174,2]
[327222607,1715903460740,-151.0,0.00011174,2]
[327222608,1715903460750,-500.0,0.00011174,2]
[327222609,1715903460759,-500.0,0.00011174,2]
[327222610,1715903460768,-1703.44,0.00011174,2]
[327222611,1715903460778,-284.725304,0.00011174,2]
[327222612,1715903460788,-151.0,0.00011174,2]
[327222613,1715903460797,-318.74,0.00011174,2]
[327222614,1715903460807,-151.0,0.00011174,2]
[327222615,1715903460817,-1884.69,0.00011174,2]
[327222616,1715903460826,-323.72,0.00011174,2]
[327222617,1715903460835,-500.0,0.00011174,2]
[327222618,1715903460844,-500.0,0.00011174,2]
[327222619,1715903460854,-500.0,0.00011174,2]
[327222620,1715903460864,-522.49450241,0.00011174,2]
[327222621,1715903460874,-500.0,0.00011174,2]
[327222622,1715903460883,-500.0,0.00011174,2]
[327222623,1715903460893,-500.0,0.00011174,2]
[327222624,1715903460902,-500.0,0.00011174,2]
[327222625,1715903460915,-500.0,0.00011174,2]
[327222626,1715903460925,-500.0,0.00011174,2]
[327222627,1715903460935,-698.45,0.00011174,2]
[327222628,1715903460945,-500.0,0.00011174,2]
[327222629,1715903460957,-500.0,0.00011174,2]
[327222630,1715903460966,-568.55,0.00011174,2]
[327222631,1715903460977,-151.0,0.00011174,2]
[327222632,1715903460986,-424.17,0.00011174,2]
[327222633,1715903460998,-301.457692,0.00011174,2]
[327222634,1715903461009,-151.0,0.00011174,2]
[327222635,1715903461018,-500.0,0.00011174,2]
[327222636,1715903461029,-301.457692,0.00011174,2]
[327222637,1715903461040,-500.0,0.00011174,2]
[327222638,1715903461051,-768.429498,0.00011174,2]
[327222639,1715903461061,-3594.91,0.00011174,2]
[327222640,1715903461070,-738.06,0.00011174,2]
[327222641,1715903461080,-151.0,0.00011174,2]
[327222642,1715903461090,-715.14,0.00011174,2]
[327222643,1715903461102,-500.0,0.00011174,2]
[327222644,1715903461111,-566.17,0.00011174,2]
[327222645,1715903461120,-768.429498,0.00011174,2]
[327222646,1715903461129,-151.0,0.00011174,2]
[327222647,1715903461138,-500.0,0.00011174,2]
[327222648,1715903461149,-500.0,0.00011174,2]
[327222649,1715903461160,-3979.97,0.00011174,2]
[327222650,1715903461169,-500.0,0.00011174,2]
[327222651,1715903461179,-3979.97,0.00011174,2]
[327222652,1715903461189,-500.0,0.00011174,2]
[327222653,1715903461199,-151.0,0.00011174,2]
[327222654,1715903461208,-500.0,0.00011174,2]
[327222655,1715903461217,-957.83,0.00011174,2]
[327222656,1715903461226,-674.83,0.00011174,2]
[327222657,1715903461236,-674.83,0.00011174,2]
[327222658,1715903461246,-500.0,0.00011174,2]
[327222659,1715903461256,-500.0,0.00011174,2]
[327222660,1715903461266,-500.0,0.00011174,2]
[327222661,1715903461276,-2240.49,0.00011174,2]
[327222662,1715903461285,-500.0,0.00011174,2]
[327222663,1715903461295,-1145.98,0.00011174,2]
[327222664,1715903461304,-1145.98,0.00011174,2]
[327222665,1715903461313,-500.0,0.00011174,2]
[327222666,1715903461322,-500.0,0.00011174,2]
[327222667,1715903461335,-500.0,0.00011174,2]
[327222668,1715903461345,-568.09,0.00011174,2]
[327222669,1715903461355,-568.09,0.00011174,2]
[327222670,1715903461365,-893.76,0.00011174,2]
[327222671,1715903461374,-500.0,0.00011174,2]
[327222672,1715903461384,-500.0,0.00011174,2]
[327222673,1715903461394,-500.0,0.00011174,2]
[327222674,1715903461403,-611.97,0.00011174,2]
[327222675,1715903461412,-500.0,0.00011174,2]
[327222676,1715903461422,-500.0,0.00011174,2]
[327222677,1715903461432,-940.45,0.00011174,2]
[327222678,1715903461442,-940.45,0.00011174,2]
[327222679,1715903461452,-500.0,0.00011174,2]
[327222680,1715903461461,-982.56,0.00011174,2]
[327222681,1715903461470,-500.0,0.00011174,2]
[327222682,1715903461479,-982.56,0.00011174,2]
[327222683,1715903461488,-500.0,0.00011174,2]
[327222684,1715903461498,-500.0,0.00011174,2]
[327222685,1715903461507,-2485.89,0.00011174,2]
[327222686,1715903461516,-576.56,0.00011174,2]
[327222687,1715903461526,-769.91,0.00011174,2]
[327222688,1715903461535,-769.91,0.00011174,2]
[327222689,1715903461545,-661.2,0.00011174,2]
[327222690,1715903461554,-661.2,0.00011174,2]
[327222691,1715903461563,-535.40379322,0.00011174,2]
[327222692,1715903461572,-1270.63,0.00011174,2]
[327222693,1715903461581,-1270.63,0.00011174,2]
[327222694,1715903461591,-500.0,0.00011174,2]
[327222695,1715903461603,-2497.65,0.00011174,2]
[327222696,1715903461612,-18093.87,0.00011174,2]
[327222697,1715903461621,-655.62,0.00011174,2]
[327222698,1715903461630,-655.62,0.00011174,2]
[327222699,1715903461638,-500.0,0.00011174,2]
[327222700,1715903461647,-500.0,0.00011174,2]
[327222701,1715903461656,-664.38,0.00011174,2]
[327222702,1715903461666,-500.0,0.00011174,2]
[327222703,1715903461675,-500.0,0.00011174,2]
[327222704,1715903461685,-926.03,0.00011174,2]
[327222705,1715903461695,-926.03,0.00011174,2]
[327222706,1715903461704,-620.14,0.00011174,2]
[327222707,1715903461713,-1872.54,0.00011174,2]
[327222708,1715903461722,-500.0,0.00011174,2]
[327222709,1715903461731,-381.82929828,0.00011174,2]
[327222710,1715903461741,-393.29,0.00011174,2]
[327222711,1715903461751,-1465.08,0.00011174,2]
[327222712,1715903461760,-1465.08,0.00011174,2]
[327222713,1715903461769,-500.0,0.00011174,2]
[327222714,1715903461779,-500.0,0.00011174,2]
[327222715,1715903461789,-500.0,0.00011174,2]
[327222716,1715903461798,-500.0,0.00011174,2]
[327222717,1715903461807,-500.0,0.00011174,2]
[327222718,1715903461817,-532.91945962,0.00011174,2]
[327222719,1715903461826,-1002.69,0.00011174,2]
[327222720,1715903461835,-500.0,0.00011174,2]
[327222721,1715903461844,-2159.43,0.00011174,2]
[327222722,1715903461856,-500.0,0.00011174,2]
[327222723,1715903461865,-500.0,0.00011174,2]
[327222724,1715903461873,-590.77,0.00011174,2]
[327222725,1715903461883,-590.77,0.00011174,2]
[327222726,1715903461892,-500.0,0.00011174,2]
[327222727,1715903461901,-2801.68,0.00011174,2]
[327222728,1715903461913,-500.0,0.00011174,2]
[327222729,1715903461924,-2801.68,0.00011174,2]
[327222730,1715903461936,-500.0,0.00011174,2]
[327222731,1715903461948,-500.0,0.00011174,2]
[327222732,1715903461959,-500.0,0.00011174,2]
[327222733,1715903461967,-929.65,0.00011174,2]
[327222734,1715903461977,-929.65,0.00011174,2]
[327222735,1715903461985,-500.0,0.00011174,2]
[327222736,1715903461997,-2152.65,0.00011174,2]
[327222737,1715903462007,-500.0,0.00011174,2]
[327222738,1715903462016,-569.85,0.00011174,2]
[327222739,1715903462026,-569.85,0.00011174,2]
[327222740,1715903462035,-500.0,0.00011174,2]
[327222741,1715903462044,-500.0,0.00011174,2]
[327222742,1715903462053,-500.0,0.00011174,2]
[327222743,1715903462062,-500.0,0.00011174,2]
[327222744,1715903462070,-651.94,0.00011174,2]
[327222745,1715903462080,-651.94,0.00011174,2]
[327222746,1715903462089,-500.0,0.00011174,2]
[327222747,1715903462099,-500.0,0.00011174,2]
[327222748,1715903462114,-500.0,0.00011174,2]
[327222749,1715903462123,-1876.24,0.00011174,2]
[327222750,1715903462132,-151.0,0.00011174,2]
[327222751,1715903462142,-1876.24,0.00011174,2]
[327222752,1715903462151,-1516.42,0.00011174,2]
[327222753,1715903462160,-1516.42,0.00011174,2]
[327222754,1715903462169,-634.66,0.00011174,2]
[327222755,1715903462178,-500.0,0.00011174,2]
[327222756,1715903462187,-500.0,0.00011174,2]
[327222757,1715903462259,-535.88,0.00011174,2]
[327222758,1715903462268,-500.0,0.00011174,2]
[327222759,1715903462277,-500.0,0.00011174,2]
[327222760,1715903462286,-500.0,0.00011174,2]
[327222761,1715903462295,-602.51,0.00011174,2]
[327222762,1715903462304,-602.51,0.00011174,2]
[327222763,1715903462313,-605.33,0.00011174,2]
[327222764,1715903462322,-961.3,0.00011174,2]
[327222765,1715903462331,-1489.54,0.00011174,2]
[327222766,1715903462341,-961.3,0.00011174,2]
[327222767,1715903462350,-638.97,0.00011174,2]
[327222768,1715903462359,-2837.02,0.00011174,2]
[327222769,1715903462368,-2837.02,0.00011174,2]
[327222770,1715903462377,-500.0,0.00011174,2]
[327222771,1715903462386,-500.0,0.00011174,2]
[327222772,1715903462394,-500.0,0.00011174,2]
[327222773,1715903462404,-500.0,0.00011174,2]
[327222774,1715903462413,-500.0,0.00011174,2]
[327222775,1715903462422,-955.34,0.00011174,2]
[327222776,1715903462432,-955.34,0.00011174,2]
[327222777,1715903462441,-500.0,0.00011174,2]
[327222778,1715903462450,-500.0,0.00011174,2]
[327222779,1715903462459,-500.0,0.00011174,2]
[327222780,1715903462468,-151.0,0.00011174,2]
[327222781,1715903462478,-500.0,0.00011174,2]
[327222782,1715903462488,-500.0,0.00011174,2]
[327222783,1715903462497,-500.0,0.00011174,2]
[327222784,1715903462507,-500.0,0.00011174,2]
[327222785,1715903462517,-500.0,0.00011174,2]
[327222786,1715903462526,-500.0,0.00011174,2]
[327222787,1715903462536,-734.42,0.00011174,2]
[327222788,1715903462546,-500.0,0.00011174,2]
[327222789,1715903462555,-693.52,0.00011174,2]
[327222790,1715903462565,-693.52,0.00011174,2]
[327222791,1715903462574,-693.52,0.00011174,2]
[327222792,1715903462584,-614.16,0.00011174,2]
[327222793,1715903462595,-614.16,0.00011174,2]
[327222794,1715903462606,-500.0,0.00011174,2]
[327222795,1715903462616,-500.0,0.00011174,2]
[327222796,1715903462626,-500.0,0.00011174,2]
[327222797,1715903462635,-2764.84,0.00011174,2]
[327222798,1715903462645,-2764.84,0.00011174,2]
[327222799,1715903462654,-1856.35,0.00011174,2]
[327222800,1715903462664,-500.0,0.00011174,2]
[327222801,1715903462674,-990.64,0.00011174,2]
[327222802,1715903462684,-500.0,0.00011174,2]
[327222803,1715903462693,-990.64,0.00011174,2]
[327222804,1715903462702,-1568.32,0.00011174,2]
[327222805,1715903462711,-1568.32,0.00011174,2]
[327222806,1715903462720,-500.0,0.00011174,2]
[327222807,1715903462729,-500.0,0.00011174,2]
[327222808,1715903462739,-500.0,0.00011174,2]
[327222809,1715903462748,-500.0,0.00011174,2]
[327222810,1715903462758,-500.0,0.00011174,2]
[327222811,1715903462767,-1563.27,0.00011174,2]
[327222812,1715903462776,-500.0,0.00011174,2]
[327222813,1715903462786,-549.28148937,0.00011174,2]
[327222814,1715903462796,-500.0,0.00011174,2]
[327222815,1715903462806,-1717.79,0.00011174,2]
[327222816,1715903462816,-1717.79,0.00011174,2]
[327222817,1715903462825,-706.42,0.00011174,2]
[327222818,1715903462835,-706.42,0.00011174,2]
[327222819,1715903462845,-706.42,0.00011174,2]
[327222820,1715903462856,-620.01,0.00011174,2]
[327222821,1715903462866,-620.01,0.00011174,2]
[327222822,1715903462875,-645.19,0.00011174,2]
[327222823,1715903462884,-645.19,0.00011174,2]
[327222824,1715903462893,-645.19,0.00011174,2]
[327222825,1715903462903,-1283.35,0.00011174,2]
[327222826,1715903462918,-850.59,0.00011174,2]
[327222827,1715903462927,-1151.36,0.00011174,2]
[327222828,1715903462936,-850.59,0.00011174,2]
[327222829,1715903462946,-529.93,0.00011174,2]
[327222830,1715903462956,-529.93,0.00011174,2]
[327222831,1715903462965,-151.0,0.00011174,2]
[327222832,1715903462975,-2959.66,0.00011174,2]
[327222833,1715903462985,-2959.66,0.00011174,2]
[327222834,1715903462994,-276.59,0.00011174,2]
[327222835,1715903463004,-519.5,0.00011174,2]
[327222836,1715903463013,-519.5,0.00011174,2]
[327222837,1715903463022,-519.5,0.00011174,2]
[327222838,1715903463031,-564.48,0.00011174,2]
[327222839,1715903463040,-500.0,0.00011174,2]
[327222840,1715903463050,-564.48,0.00011174,2]
[327222841,1715903463059,-151.0,0.00011174,2]
[327222842,1715903463068,-839.09,0.00011174,2]
[327222843,1715903463077,-839.09,0.00011174,2]
[327222844,1715903463086,-579.69,0.00011174,2]
[327222845,1715903463095,-1542.58,0.00011174,2]
[327222846,1715903463107,-551.64,0.00011174,2]
[327222847,1715903463115,-551.64,0.00011174,2]
[327222848,1715903463124,-151.0,0.00011174,2]
[327222849,1715903463133,-673.71,0.00011174,2]
[327222850,1715903463142,-673.71,0.00011174,2]
[327222851,1715903463152,-1584.13,0.00011174,2]
[327222852,1715903463162,-673.71,0.00011174,2]
[327222853,1715903463171,-1584.13,0.00011174,2]
[327222854,1715903463180,-610.4,0.00011174,2]
[327222855,1715903463190,-500.0,0.00011174,2]
[327222856,1715903463199,-500.0,0.00011174,2]
[327222857,1715903463208,-500.0,0.00011174,2]
[327222858,1715903463218,-500.0,0.00011174,2]
[327222859,1715903463227,-500.0,0.00011174,2]
[327222860,1715903463237,-653.57,0.00011174,2]
[327222861,1715903463246,-653.57,0.00011174,2]
[327222862,1715903463256,-500.0,0.00011174,2]
[327222863,1715903463266,-151.0,0.00011174,2]
[327222864,1715903463275,-614.64,0.00011174,2]
[327222865,1715903463284,-151.0,0.00011174,2]
[327222866,1715903463294,-614.64,0.00011174,2]
[327222867,1715903463303,-500.0,0.00011174,2]
[327222868,1715903463313,-910.980442,0.00011174,2]
[327222869,1715903463323,-500.0,0.00011174,2]
[327222870,1715903463332,-500.0,0.00011174,2]
[327222871,1715903463341,-500.0,0.00011174,2]
[327222872,1715903463351,-244.895458,0.00011174,2]
[327222873,1715903463361,-500.0,0.00011174,2]
[327222874,1715903463370,-500.0,0.00011174,2]
[327222875,1715903463379,-1020.47,0.00011174,2]
[327222876,1715903463388,-1700.56,0.00011174,2]
[327222877,1715903463397,-1700.56,0.00011174,2]
[327222878,1715903463406,-1046.55,0.00011174,2]
[327222879,1715903463416,-1046.55,0.00011174,2]
[327222880,1715903463425,-715.05,0.00011174,2]
[327222881,1715903463434,-910.980442,0.00011174,2]
[327222882,1715903463443,-151.0,0.00011174,2]
[327222883,1715903463453,-151.0,0.00011174,2]
[327222884,1715903463462,-527.73,0.00011174,2]
[327222885,1715903463471,-527.73,0.00011174,2]
[327222886,1715903463481,-244.895458,0.00011174,2]
[327222887,1715903463490,-518.03,0.00011174,2]
[327222888,1715903463499,-2682.53,0.00011174,2]
[327222889,1715903463509,-2682.53,0.00011174,2]
[327222890,1715903463518,-864.39,0.00011174,2]
[327222891,1715903463527,-151.0,0.00011174,2]
[327222892,1715903463536,-534.54,0.00011174,2]
[327222893,1715903463556,-534.54,0.00011174,2]
[327222894,1715903463566,-566.49,0.00011174,2]
[327222895,1715903463576,-566.49,0.00011174,2]
[327222896,1715903463586,-1832.75,0.00011174,2]
[327222897,1715903463595,-1832.75,0.00011174,2]
[327222898,1715903463606,-151.0,0.00011174,2]
[327222899,1715903463615,-500.0,0.00011174,2]
[327222900,1715903463624,-500.0,0.00011174,2]
[327222901,1715903463634,-1396.87,0.00011174,2]
[327222902,1715903463643,-915.85,0.00011174,2]
[327222903,1715903463652,-1396.87,0.00011174,2]
[327222904,1715903463661,-915.85,0.00011174,2]
[327222905,1715903463671,-915.85,0.00011174,2]
[327222906,1715903463680,-500.0,0.00011174,2]
[327222907,1715903463690,-151.0,0.00011174,2]
[327222908,1715903463700,-500.0,0.00011174,2]
[327222909,1715903463710,-585.8,0.00011174,2]
[327222910,1715903463721,-1611.3,0.00011174,2]
[327222911,1715903463731,-585.8,0.00011174,2]
[327222912,1715903463741,-1611.3,0.00011174,2]
[327222913,1715903463751,-2556.69,0.00011174,2]
[327222914,1715903463760,-151.0,0.00011174,2]
[327222915,1715903463770,-1377.87,0.00011174,2]
[327222916,1715903463780,-1377.87,0.00011174,2]
[327222917,1715903463790,-1377.87,0.00011174,2]
[327222918,1715903463799,-500.0,0.00011174,2]
[327222919,1715903463809,-2502.58,0.00011174,2]
[327222920,1715903463819,-2502.58,0.00011174,2]
[327222921,1715903463828,-500.0,0.00011174,2]
[327222922,1715903463838,-500.0,0.00011174,2]
[327222923,1715903463848,-1996.23,0.00011174,2]
[327222924,1715903463859,-500.0,0.00011174,2]
[327222925,1715903463868,-1996.23,0.00011174,2]
[327222926,1715903463878,-151.0,0.00011174,2]
[327222927,1715903463888,-858.54,0.00011174,2]
[327222928,1715903463898,-4363.33,0.00011174,2]
[327222929,1715903463908,-4363.33,0.00011174,2]
[327222930,1715903463921,-559.33,0.00011174,2]
[327222931,1715903463931,-559.33,0.00011174,2]
[327222932,1715903463940,-152.139386,0.00011174,2]
[327222933,1715903463951,-541.74450394,0.00011174,2]
[327222934,1715903463961,-2372.7,0.00011174,2]
[327222935,1715903463970,-151.0,0.00011174,2]
[327222936,1715903463980,-500.0,0.00011174,2]
[327222937,1715903463991,-500.0,0.00011174,2]
[327222938,1715903464000,-5327.56,0.00011174,2]
[327222939,1715903464011,-5327.56,0.00011174,2]
[327222940,1715903464020,-500.0,0.00011174,2]
[327222941,1715903464030,-500.0,0.00011174,2]
[327222942,1715903464039,-405.87,0.00011174,2]
[327222943,1715903464049,-1707.79,0.00011174,2]
[327222944,1715903464058,-1707.79,0.00011174,2]
[327222945,1715903464068,-1134.14,0.00011174,2]
[327222946,1715903464078,-1134.14,0.00011174,2]
[327222947,1715903464089,-500.0,0.00011174,2]
[327222948,1715903464100,-500.0,0.00011174,2]
[327222949,1715903464110,-1742.49,0.00011174,2]
[327222950,1715903464121,-1016.57,0.00011174,2]
[327222951,1715903464132,-1353.56,0.00011174,2]
[327222952,1715903464143,-8375.93,0.00011174,2]
[327222953,1715903464154,-8375.93,0.00011174,2]
[327222954,1715903464164,-3571.76,0.00011174,2]
[327222955,1715903464175,-3571.76,0.00011174,2]
[327222956,1715903464185,-3571.76,0.00011174,2]
[327222957,1715903464195,-500.0,0.00011174,2]
[327222958,1715903464205,-500.0,0.00011174,2]
[327222959,1715903464215,-500.0,0.00011174,2]
[327222960,1715903464224,-500.0,0.00011174,2]
[327222961,1715903464234,-500.0,0.00011174,2]
[327222962,1715903464244,-500.0,0.00011174,2]
[327222963,1715903464253,-449239.35528753,0.00011175,2]
[327222964,1715903464263,-1034.6412428,0.00011175,3]
[327222965,1715903464273,-451.42389647,0.00011175,2]
[327222966,1715903464282,-500.0,0.00011175,2]
[327222967,1715903464292,-452.9,0.00011175,2]
[327222968,1715903464301,-510.59,0.00011175,2]
[327222969,1715903464311,-510.59,0.00011175,2]
[327222970,1715903464320,-500.0,0.00011175,2]
[327222971,1715903464330,-500.0,0.00011175,2]
[327222972,1715903464339,-500.0,0.00011175,2]
[327222973,1715903464349,-500.0,0.00011175,2]
[327222974,1715903464359,-500.0,0.00011175,2]
[327222975,1715903464369,-500.0,0.00011175,2]
[327222976,1715903464378,-773.1,0.00011175,2]
[327222977,1715903464388,-773.1,0.00011175,2]
[327222978,1715903464398,-500.0,0.00011175,2]
[327222979,1715903464407,-1199.88,0.00011175,2]
[327222980,1715903464416,-636.9,0.00011175,2]
[327222981,1715903464426,-636.9,0.00011175,2]
[327222982,1715903464435,-500.0,0.00011175,2]
[327222983,1715903464445,-500.0,0.00011175,2]
[327222984,1715903464454,-500.0,0.00011175,2]
[327222985,1715903464464,-500.0,0.00011175,2]
[327222986,1715903464474,-500.0,0.00011175,2]
[327222987,1715903464483,-500.0,0.00011175,2]